bitfinex-derivatives/quotes_BTCF0:USTF0_20250926
["timestamp","ask_amount","ask_price","bid_price","bid_amount"]
[1758866068786,0.27899931,109150.0,109140.0,1.32757145]
[1758866069282,0.27899931,109150.0,109140.0,1.06157214]
[1758866069784,0.27836931,109170.0,109160.0,0.1277719]
[1758866069976,0.01237,109170.0,109160.0,1.38137052]
[1758866070178,0.01237,109180.0,109170.0,0.1277635]
[1758866070379,0.27836931,109200.0,109190.0,0.1277467]
[1758866070690,0.64490908,109200.0,109190.0,0.03622]
[1758866070877,0.64490908,109200.0,109190.0,0.10204701]
[1758866071073,0.63588692,109200.0,109190.0,0.10204701]
[1758866071888,0.64288692,109200.0,109190.0,0.19357371]
[1758866072388,0.64688692,109200.0,109190.0,0.1277467]
[1758866072985,0.28936931,109200.0,109190.0,0.45957302]
[1758866073182,0.28936931,109200.0,109190.0,0.19357371]
[1758866073385,0.28936931,109200.0,109190.0,0.45957302]
[1758866073988,0.28920931,109200.0,109190.0,0.45957302]
[1758866074192,0.28620931,109200.0,109190.0,0.45957302]
[1758866074388,0.28620931,109200.0,109190.0,0.39374601]
[1758866076085,0.28620931,109200.0,109190.0,0.75454601]
[1758866076592,0.55220862,109200.0,109190.0,0.4885467]
[1758866077885,0.54820862,109200.0,109190.0,0.4905467]
[1758866078592,0.54420862,109200.0,109190.0,0.4905467]
[1758866078793,0.54620862,109200.0,109190.0,0.4905467]
[1758866079492,0.54620862,109200.0,109190.0,0.39902]
[1758866079699,1.66452623,109200.0,109190.0,0.01562]
[1758866079994,1.66452623,109200.0,109190.0,0.002]
[1758866080294,1.68327611,109200.0,109190.0,0.002]
[1758866080499,1.28327611,109200.0,109190.0,0.002]
[1758866082703,1.68327611,109200.0,109190.0,0.002]
[1758866084595,1.4169237,109200.0,109190.0,0.002]
[1758866086698,0.99817382,109200.0,109190.0,0.002]
[1758866087300,0.73235106,109200.0,109190.0,0.03822]
[1758866087497,0.99817382,109200.0,109190.0,0.03822]
[1758866087797,0.73235106,109200.0,109190.0,0.03822]
[1758866088597,0.4665283,109200.0,109190.0,0.03822]
[1758866088793,0.73235106,109200.0,109190.0,0.03822]
[1758866089498,0.4665283,109200.0,109190.0,0.03822]
[1758866089697,0.73235106,109200.0,109190.0,0.03822]
[1758866090794,0.4665283,109200.0,109190.0,0.03822]
[1758866090994,0.99817382,109200.0,109190.0,0.03822]
[1758866091190,0.73235106,109200.0,109190.0,0.03822]
[1758866091696,0.4665283,109200.0,109190.0,0.03822]
[1758866091897,0.73235106,109200.0,109190.0,0.1297467]
[1758866092601,0.73235106,109200.0,109190.0,0.03822]
[1758866092993,0.4665283,109200.0,109190.0,0.62132598]
[1758866093200,0.002,109200.0,109190.0,1.24794874]
[1758866093403,0.002,109200.0,109190.0,1.31377575]
[1758866094401,0.002,109200.0,109190.0,1.04795299]
[1758866094594,0.002,109200.0,109190.0,1.32377575]
[1758866094794,0.00033071,109200.0,109190.0,1.32377575]
[1758866094992,0.73075786,109230.0,109220.0,0.03574]
[1758866096798,0.73075786,109230.0,109220.0,0.1272416]
[1758866096799,0.73475786,109230.0,109220.0,0.1272416]
[1758866097699,0.74075786,109230.0,109220.0,0.1272416]
[1758866097900,0.28846276,109230.0,109220.0,0.4880416]
[1758866098198,0.28846276,109230.0,109220.0,0.1272416]
[1758866098398,0.28846276,109230.0,109220.0,0.4880416]
[1758866098997,0.02264,109230.0,109220.0,0.4880416]
[1758866099498,0.28846276,109230.0,109220.0,0.4880416]
[1758866099696,0.01,109230.0,109220.0,1.24541849]
[1758866099890,0.28846276,109230.0,109220.0,0.97959573]
[1758866100298,0.02264,109230.0,109220.0,0.97959573]
[1758866100698,0.01,109230.0,109220.0,1.24541849]
[1758866101007,0.01,109230.0,109220.0,1.3112455]
[1758866102007,0.27582276,109230.0,109220.0,1.04542274]
[1758866102303,0.004,109230.0,109220.0,0.97959573]
[1758866102506,0.35730786,109240.0,109220.0,0.97959573]
[1758866102807,0.36994786,109240.0,109230.0,0.39654]
[1758866103507,0.27846276,109240.0,109230.0,0.57958733]
[1758866103799,0.01264,109250.0,109240.0,0.1272248]
[1758866103999,0.4522637,109270.0,109250.0,0.0914764]
[1758866104200,0.4522637,109270.0,109260.0,0.127208]
[1758866104201,0.37325,109270.0,109260.0,0.127208]
[1758866104403,0.26582276,109270.0,109260.0,0.488008]
[1758866104594,0.77128612,109280.0,109270.0,0.03607]
[1758866105104,0.4830141,109280.0,109270.0,0.03607]
[1758866105304,0.31903082,109280.0,109260.0,0.37384]
[1758866105508,0.1039097,109270.0,109260.0,0.03517]
[1758866105802,0.103918,109260.0,109250.0,0.03517]
[1758866106012,0.75299002,109260.0,109250.0,0.03517]
[1758866106709,0.30072202,109260.0,109250.0,0.03517]
[1758866107109,0.39819002,109260.0,109250.0,0.03517]
[1758866107609,0.1039264,109250.0,109240.0,0.01304]
[1758866107807,0.39219842,109250.0,109240.0,0.01304]
[1758866108299,0.39219842,109250.0,109240.0,0.03517]
[1758866109011,0.79219842,109250.0,109240.0,0.03517]
[1758866109211,0.80419842,109250.0,109240.0,0.03517]
[1758866109603,0.80419842,109250.0,109240.0,0.1266548]
[1758866109801,0.80919842,109250.0,109240.0,0.1266548]
[1758866110206,0.02945,109250.0,109240.0,0.1266548]
[1758866110407,0.1084764,109250.0,109240.0,0.21819217]
[1758866110605,0.40919842,109250.0,109240.0,0.12670737]
[1758866110813,0.40919842,109250.0,109240.0,0.03517]
[1758866112209,0.40919842,109250.0,109240.0,0.1266548]
[1758866112415,0.31772202,109250.0,109240.0,0.1266548]
[1758866113215,0.02945,109250.0,109240.0,0.1266548]
[1758866113408,0.017,109250.0,109240.0,0.97899217]
[1758866115516,0.02945,109250.0,109240.0,0.97899217]
[1758866115916,0.017,109250.0,109240.0,0.97899217]
[1758866116519,0.017,109250.0,109240.0,1.26726419]
[1758866116713,0.76280752,109280.0,109270.0,0.03607]
[1758866117013,0.38308,109290.0,109280.0,0.1275213]
[1758866117212,0.1137229,109290.0,109280.0,0.1275213]
[1758866117418,0.02228,109290.0,109280.0,0.4883213]
[1758866117812,0.38308,109300.0,109290.0,0.1275129]
[1758866118117,0.76278662,109300.0,109290.0,0.03607]
[1758866118916,0.40198662,109300.0,109290.0,0.03607]
[1758866119114,0.31055202,109300.0,109290.0,0.1275129]
[1758866119418,0.31039202,109300.0,109290.0,0.1275129]
[1758866119619,0.32439202,109300.0,109290.0,0.1275129]
[1758866120021,0.03612,109300.0,109290.0,0.1275129]
[1758866120225,0.03612,109300.0,109290.0,0.21900839]
[1758866120417,0.02,109300.0,109290.0,0.57980839]
[1758866120617,0.04228,109300.0,109290.0,0.57980839]
[1758866120813,0.04228,109300.0,109290.0,0.48836549]
[1758866121124,0.42198662,109300.0,109290.0,0.48836549]
[1758866121314,0.78278662,109300.0,109290.0,0.03607]
[1758866122016,0.78178662,109300.0,109290.0,0.03607]
[1758866122216,0.76778662,109300.0,109290.0,0.03607]
[1758866122532,0.77578662,109300.0,109290.0,0.02213]
[1758866123115,1.08435202,109300.0,109270.0,0.37474]
[1758866123327,0.76280332,109280.0,109270.0,0.03607]
[1758866123523,0.76280332,109280.0,109270.0,0.12756549]
[1758866123712,0.0914597,109270.0,109260.0,0.01394]
[1758866123909,0.76281172,109270.0,109260.0,0.03607]
[1758866125824,0.75881172,109270.0,109260.0,0.03607]
[1758866126325,0.75881172,109270.0,109260.0,0.04607]
[1758866126522,0.75981172,109270.0,109260.0,0.04607]
[1758866126920,0.75981172,109270.0,109260.0,0.03607]
[1758866127119,0.75981172,109270.0,109260.0,0.04007]
[1758866127319,0.76081172,109270.0,109260.0,0.04007]
[1758866127926,0.4725397,109270.0,109260.0,0.04007]
[1758866128119,0.76081172,109270.0,109260.0,0.04007]
[1758866128320,0.67335202,109270.0,109260.0,0.131538]
[1758866128516,0.31255202,109270.0,109260.0,0.492338]
[1758866128821,0.02428,109270.0,109260.0,0.492338]
[1758866129922,0.002,109270.0,109260.0,0.98385861]
[1758866130221,0.002,109270.0,109260.0,1.27213063]
[1758866130527,0.002,109270.0,109260.0,0.98385861]
[1758866131825,0.02357,109270.0,109260.0,0.98385861]
[1758866132127,0.31184202,109270.0,109260.0,0.40087]
[1758866132326,0.02357,109270.0,109260.0,0.58385861]
[1758866134123,0.02357,109270.0,109260.0,0.58373861]
[1758866134327,0.002,109270.0,109260.0,0.58373861]
[1758866134530,0.02357,109270.0,109260.0,0.58373861]
[1758866134720,0.002,109270.0,109260.0,0.58373861]
[1758866135120,0.02357,109270.0,109260.0,0.58373861]
[1758866135329,0.002,109270.0,109260.0,0.58373861]
[1758866135829,0.02357,109270.0,109260.0,0.58373861]
[1758866137129,0.1150297,109270.0,109260.0,0.49227061]
[1758866137336,0.1150297,109270.0,109260.0,0.58373861]
[1758866137629,0.40330172,109270.0,109260.0,0.03995]
[1758866137823,0.77411172,109270.0,109260.0,0.004]
[1758866138030,0.77411172,109270.0,109260.0,0.131308]
[1758866138031,0.31184202,109270.0,109260.0,0.131308]
[1758866138229,0.1150297,109270.0,109260.0,0.03984]
[1758866138930,0.1150297,109270.0,109260.0,0.131308]
[1758866140629,0.02357,109270.0,109260.0,0.131308]
[1758866140831,0.02357,109270.0,109260.0,0.58362861]
[1758866142419,0.002,109270.0,109260.0,0.98362861]
[1758866143022,0.02157,109280.0,109270.0,0.1272968]
[1758866143225,0.74051982,109290.0,109270.0,0.1272968]
[1758866143425,0.76208982,109290.0,109280.0,0.03584]
[1758866144227,0.42473512,109290.0,109280.0,0.03584]
[1758866144427,0.78553512,109290.0,109280.0,0.03584]
[1758866145229,0.02157,109290.0,109280.0,0.1272913]
[1758866145629,0.1130129,109290.0,109280.0,0.1272913]
[1758866145928,0.1130129,109290.0,109280.0,0.03584]
[1758866146237,0.1130129,109290.0,109270.0,0.4880988]
[1758866146238,0.02157,109280.0,109270.0,0.4880988]
[1758866146427,0.30984202,109280.0,109270.0,0.4880988]
[1758866146731,0.35323849,109280.0,109270.0,0.57960266]
[1758866147435,0.44468979,109280.0,109270.0,0.21880266]
[1758866147637,0.1130297,109270.0,109260.0,0.4881072]
[1758866147836,0.44469819,109270.0,109260.0,0.4881072]
[1758866148135,0.35323849,109270.0,109260.0,0.4881072]
[1758866148529,0.44469819,109270.0,109260.0,0.4881072]
[1758866148725,0.44469819,109270.0,109260.0,0.39664]
[1758866149233,0.44569819,109270.0,109260.0,0.39664]
[1758866149434,0.44569819,109270.0,109260.0,0.488108]
[1758866149834,0.44569819,109270.0,109260.0,0.491108]
[1758866150230,0.44569819,109270.0,109260.0,0.39964]
[1758866150643,0.1140297,109270.0,109260.0,0.39964]
[1758866150938,0.44569819,109270.0,109260.0,0.39964]
[1758866152140,0.1140297,109270.0,109260.0,0.491108]
[1758866152340,0.1140297,109270.0,109260.0,0.55693501]
[1758866152553,0.1140297,109270.0,109260.0,0.46546701]
[1758866154142,0.1140297,109270.0,109260.0,0.10466701]
[1758866154942,0.1140297,109270.0,109260.0,0.19613501]
[1758866155335,0.1140297,109270.0,109260.0,0.55693501]
[1758866156129,0.001,109270.0,109260.0,1.38012411]
[1758866156339,0.001,109270.0,109260.0,1.3142971]
[1758866157840,0.001,109270.0,109260.0,1.39663614]
[1758866162848,0.1128715,109300.0,109290.0,0.1263529]
[1758866163043,0.1128715,109300.0,109290.0,0.19213743]
[1758866164149,0.1277515,109300.0,109290.0,0.19213743]
[1758866164649,0.1327515,109300.0,109290.0,0.19213743]
[1758866165148,0.1277515,109300.0,109290.0,0.19213743]
[1758866165350,0.1317515,109300.0,109290.0,0.19213743]
[1758866165648,0.019,109300.0,109290.0,0.97610141]
[1758866165852,0.019,109300.0,109290.0,1.31031688]
[1758866166052,0.019,109300.0,109290.0,1.39265592]
[1758866166246,0.019,109300.0,109290.0,1.63265592]
[1758866166247,0.004,109300.0,109290.0,1.63265592]
[1758866166443,0.013,109300.0,109290.0,1.70557034]
[1758866167350,0.0914108,109330.0,109290.0,1.70557034]
[1758866167553,0.1132208,109330.0,109320.0,0.39586]
[1758866167946,0.1132208,109330.0,109320.0,0.03506]
[1758866168147,0.44488929,109330.0,109320.0,0.03506]
[1758866168948,0.1202208,109330.0,109320.0,0.03506]
[1758866169148,0.1202208,109330.0,109320.0,0.39586]
[1758866169446,0.45188929,109330.0,109320.0,0.39586]
[1758866169646,0.45288929,109330.0,109320.0,0.39586]
[1758866169849,0.1212208,109330.0,109320.0,0.03506]
[1758866170045,0.45288929,109330.0,109320.0,0.03506]
[1758866170249,0.45288929,109330.0,109320.0,0.21794818]
[1758866170250,0.008,109330.0,109320.0,0.21794818]
[1758866170449,0.04181,109330.0,109320.0,0.21794818]
[1758866170652,0.04181,109330.0,109320.0,0.57874818]
[1758866174559,0.30687591,109330.0,109320.0,0.84381409]
[1758866174752,0.39828541,109330.0,109320.0,0.84381409]
[1758866174952,0.30687591,109330.0,109320.0,0.84381409]
[1758866176648,0.39828541,109330.0,109320.0,0.84381409]
[1758866176852,0.39828541,109330.0,109320.0,0.57874818]
[1758866177052,0.39828541,109330.0,109320.0,0.84381409]
[1758866177853,0.39828541,109330.0,109320.0,0.75239629]
[1758866178257,0.1332195,109330.0,109320.0,0.75239629]
[1758866178454,0.39828541,109330.0,109320.0,0.75239629]
[1758866178761,0.79828541,109330.0,109320.0,0.03506]
[1758866178963,0.79828541,109330.0,109320.0,0.02177]
[1758866178964,0.81207541,109330.0,109320.0,0.02177]
[1758866179166,0.81199541,109330.0,109320.0,0.02177]
[1758866179367,0.1132278,109320.0,109310.0,0.39586]
[1758866179660,0.37829371,109320.0,109310.0,0.48733038]
[1758866180361,0.64335962,109320.0,109310.0,0.48733038]
[1758866180560,0.65336962,109320.0,109310.0,0.12653038]
[1758866180756,0.66436962,109320.0,109310.0,0.12653038]
[1758866181362,0.66436962,109320.0,109310.0,0.03506]
[1758866182159,0.65435962,109320.0,109310.0,0.03506]
[1758866183960,0.65435962,109320.0,109310.0,0.1264862]
[1758866184164,0.29787591,109320.0,109310.0,0.75235211]
[1758866184361,0.03281,109320.0,109310.0,0.75235211]
[1758866184562,0.011,109320.0,109310.0,0.84383086]
[1758866185169,0.29768591,109320.0,109310.0,0.84383086]
[1758866186067,0.29768591,109320.0,109310.0,0.48733875]
[1758866186260,0.65416962,109320.0,109310.0,0.12653875]
[1758866186461,0.66526962,109320.0,109310.0,0.02177]
[1758866186762,0.1130462,109310.0,109300.0,0.46073849]
[1758866186966,1.01486802,109310.0,109300.0,0.02102]
[1758866187567,0.73891211,109310.0,109300.0,0.03432]
[1758866187863,0.38510371,109320.0,109310.0,0.03432]
[1758866188067,1.02185962,109320.0,109310.0,0.02102]
[1758866188258,0.4917278,109320.0,109310.0,0.02102]
[1758866188458,1.02185962,109320.0,109310.0,0.02102]
[1758866188659,0.82318065,109320.0,109310.0,0.02102]
[1758866189067,0.46238065,109320.0,109310.0,0.03432]
[1758866189364,0.1200378,109320.0,109310.0,0.03432]
[1758866189660,0.45149065,109320.0,109310.0,0.03432]
[1758866189861,0.36007285,109320.0,109310.0,0.1257462]
[1758866190066,0.36007285,109320.0,109310.0,0.4865462]
[1758866190765,0.02162,109320.0,109310.0,0.4865462]
[1758866191171,0.1130378,109320.0,109310.0,0.4865462]
[1758866191667,0.1170378,109320.0,109310.0,0.4865462]
[1758866192671,0.1240378,109320.0,109310.0,0.4865462]
[1758866193164,0.1240378,109320.0,109300.0,0.77118134]
[1758866193165,0.03272,109310.0,109300.0,0.42642849]
[1758866193374,0.1171046,109300.0,109290.0,0.08664849]
[1758866193558,0.1171046,109300.0,109290.0,0.02102]
[1758866193758,0.44855745,109300.0,109290.0,0.11249875]
[1758866194066,0.44855745,109300.0,109290.0,0.26102]
[1758866194271,0.44855745,109300.0,109290.0,0.26082]
[1758866194458,1.20935745,109300.0,109290.0,0.30562849]
[1758866194663,0.1257629,109290.0,109280.0,0.09993849]
[1758866194862,0.45721575,109290.0,109280.0,0.02102]
[1758866195663,0.45721575,109290.0,109270.0,0.67972849]
[1758866195664,0.0914513,109280.0,109270.0,0.33994849]
[1758866195865,0.80532415,109280.0,109270.0,0.27432]
[1758866196068,0.81641415,109280.0,109270.0,0.27432]
[1758866196266,0.81141415,109280.0,109270.0,0.27432]
[1758866196771,0.4799613,109280.0,109270.0,0.27432]
[1758866196959,0.81141415,109280.0,109270.0,0.27432]
[1758866197165,0.4688713,109280.0,109270.0,0.27432]
[1758866197867,0.4698713,109280.0,109270.0,0.27532]
[1758866201066,0.1090713,109280.0,109270.0,0.27532]
[1758866204877,0.44052415,109280.0,109270.0,0.27532]
[1758866206578,0.1090713,109280.0,109270.0,0.27532]
[1758866206778,0.44052415,109280.0,109270.0,0.27532]
[1758866208282,0.1090713,109280.0,109270.0,0.27532]
[1758866208483,0.44052415,109280.0,109270.0,0.27532]
[1758866208784,0.1090713,109280.0,109270.0,0.27532]
[1758866208976,0.1090713,109280.0,109270.0,0.3667797]
[1758866209180,0.1090713,109280.0,109270.0,0.3667397]
[1758866210675,0.37438634,109280.0,109270.0,0.3667397]
[1758866211082,0.37438634,109280.0,109270.0,0.27528]
[1758866212788,0.37438634,109280.0,109270.0,0.3667397]
[1758866213082,0.28793504,109280.0,109270.0,0.3667397]
[1758866213282,0.37938634,109280.0,109270.0,0.3667397]
[1758866213885,0.37938634,109280.0,109270.0,1.48436697]
[1758866213886,0.001,109280.0,109270.0,1.48436697]
[1758866214084,0.001,109280.0,109270.0,1.54999546]
[1758866214485,0.001,109280.0,109270.0,1.48436697]
[1758866215179,0.001,109280.0,109270.0,1.21905193]
[1758866215483,0.001,109280.0,109270.0,1.48436697]
[1758866216184,0.02173,109310.0,109300.0,0.1257246]
[1758866216383,0.02173,109310.0,109300.0,0.75183964]
[1758866216584,0.02173,109320.0,109310.0,0.1257122]
[1758866216782,0.02173,109320.0,109310.0,0.4865122]
[1758866217286,0.02173,109320.0,109310.0,0.75182724]
[1758866218680,0.37846284,109320.0,109310.0,0.1257122]
[1758866218985,0.37846284,109320.0,109310.0,0.4865122]
[1758866218986,0.40246284,109320.0,109310.0,0.4865122]
[1758866219184,0.40946284,109320.0,109310.0,0.1257122]
[1758866219587,0.39746284,109320.0,109310.0,0.03429]
[1758866221082,0.39446284,109320.0,109310.0,0.03429]
[1758866221587,0.39446284,109320.0,109310.0,0.1257162]
[1758866222788,0.39446284,109320.0,109310.0,0.03429]
[1758866223283,0.79855284,109320.0,109310.0,0.02133]
[1758866224189,0.30296504,109320.0,109310.0,0.1253962]
[1758866224382,0.30296504,109320.0,109310.0,0.4861962]
[1758866224787,0.39438284,109320.0,109310.0,0.4861962]
[1758866225189,0.1290678,109320.0,109310.0,0.4861962]
[1758866225384,0.016,109320.0,109310.0,0.4861962]
[1758866225695,0.016,109320.0,109310.0,0.57767495]
[1758866225889,0.016,109320.0,109310.0,0.84298999]
[1758866226189,0.016,109320.0,109310.0,0.97767495]
[1758866226385,0.016,109320.0,109310.0,1.24298999]
[1758866227491,0.012,109320.0,109310.0,1.24298999]
[1758866227685,0.013,109320.0,109310.0,1.24298999]
[1758866228088,0.001,109320.0,109310.0,1.24298999]
[1758866232397,0.02155,109350.0,109340.0,0.0914008]
[1758866232594,0.02155,109350.0,109340.0,0.75166584]
[1758866233192,0.02155,109350.0,109340.0,0.84314459]
[1758866233397,0.02155,109350.0,109340.0,0.57782955]
[1758866233794,0.02155,109350.0,109340.0,0.48642875]
[1758866233795,0.37825794,109350.0,109340.0,0.48642875]
[1758866234496,0.38325794,109350.0,109340.0,0.48642875]
[1758866234895,1.16715794,109350.0,109340.0,0.02151]
[1758866235103,1.16215794,109350.0,109340.0,0.02151]
[1758866235413,1.16615794,109350.0,109340.0,0.02151]
[1758866235906,0.79425794,109350.0,109340.0,0.39495]
[1758866236107,0.79425794,109350.0,109340.0,0.4863515]
[1758866236402,0.1289429,109350.0,109340.0,0.4863515]
[1758866236609,0.03755,109350.0,109340.0,0.4863515]
[1758866237006,0.30286504,109350.0,109340.0,0.4863515]
[1758866237209,1.06867504,109350.0,109340.0,0.09145365]
[1758866237511,0.1129618,109330.0,109320.0,0.03415]
[1758866237813,0.1250518,109330.0,109320.0,0.03415]
[1758866237999,1.15116684,109330.0,109320.0,0.03415]
[1758866238206,1.15116684,109330.0,109320.0,0.02151]
[1758866239010,0.1129685,109320.0,109310.0,0.03415]
[1758866239208,1.01549858,109320.0,109310.0,0.03415]
[1758866239409,1.01549858,109320.0,109310.0,0.02151]
[1758866239711,0.1129768,109310.0,109300.0,0.39495]
[1758866240012,0.37829184,109310.0,109300.0,0.39495]
[1758866240415,0.38330184,109310.0,109300.0,0.39495]
[1758866240618,0.1250836,109290.0,109280.0,0.02151]
[1758866240914,0.77410796,109290.0,109280.0,0.02151]
[1758866241810,0.1130018,109280.0,109270.0,0.27415]
[1758866242117,0.40122616,109280.0,109270.0,0.27415]
[1758866242414,0.41232616,109280.0,109270.0,0.02151]
[1758866242602,0.40122616,109280.0,109270.0,0.03415]
[1758866244814,0.1130018,109280.0,109270.0,0.03415]
[1758866245013,0.02955,109280.0,109270.0,0.03415]
[1758866245614,0.121002,109280.0,109270.0,0.03415]
[1758866245808,0.481802,109280.0,109270.0,0.03415]
[1758866246014,0.475802,109280.0,109270.0,0.03415]
[1758866246318,0.486902,109280.0,109270.0,0.03415]
[1758866246917,0.77512636,109280.0,109270.0,0.02151]
[1758866247221,0.1141403,109270.0,109260.0,0.27422]
[1758866247514,0.1141403,109270.0,109260.0,0.36573223]
[1758866248311,0.40236466,109270.0,109260.0,0.36573223]
[1758866248520,0.1141403,109270.0,109260.0,0.36673223]
[1758866248720,0.1141403,109270.0,109260.0,0.37273223]
[1758866250018,0.1141403,109270.0,109260.0,0.73353223]
[1758866250222,0.02268,109270.0,109260.0,0.82500103]
[1758866250724,0.1141404,109270.0,109260.0,0.82500103]
[1758866251220,0.1141404,109270.0,109260.0,0.73353223]
[1758866251519,0.1141404,109270.0,109260.0,0.37273223]
[1758866251914,0.1141404,109270.0,109260.0,0.73353223]
[1758866252321,0.1141404,109270.0,109260.0,0.82500103]
[1758866252522,0.02268,109270.0,109260.0,0.82500103]
[1758866252821,0.1141403,109270.0,109260.0,0.82500103]
[1758866254120,0.1141403,109270.0,109260.0,0.82488103]
[1758866254723,0.1141403,109270.0,109260.0,0.73341223]
[1758866256226,0.1141403,109270.0,109260.0,0.82488083]
[1758866257224,0.1141403,109270.0,109260.0,0.73341223]
[1758866258830,0.4749329,109280.0,109270.0,0.03446]
[1758866259121,0.1141329,109280.0,109270.0,0.1259204]
[1758866259521,0.1141329,109280.0,109270.0,0.03446]
[1758866260620,0.1151329,109280.0,109270.0,0.03446]
[1758866262531,0.38043308,109280.0,109270.0,0.03446]
[1758866264227,0.02368,109280.0,109270.0,0.48273221]
[1758866264432,0.02368,109280.0,109270.0,0.84353221]
[1758866264832,0.02368,109280.0,109270.0,1.24353221]
[1758866266627,0.001,109280.0,109270.0,1.24353221]
[1758866268337,0.1141111,109310.0,109300.0,0.03446]
[1758866268731,0.02268,109310.0,109300.0,0.75187151]
[1758866268929,0.28785691,109310.0,109300.0,0.75187151]
[1758866269128,0.28785691,109310.0,109300.0,0.39526]
[1758866269334,0.28785691,109310.0,109300.0,0.66043691]
[1758866269532,0.02268,109310.0,109300.0,0.66043691]
[1758866269835,0.28785691,109310.0,109300.0,0.66043691]
[1758866270230,0.35659621,109320.0,109310.0,0.01288]
[1758866270536,0.37927621,109320.0,109310.0,0.03446]
[1758866270728,1.00525312,109320.0,109310.0,0.03446]
[1758866271130,0.91383382,109320.0,109310.0,0.03446]
[1758866271736,1.41029192,109320.0,109300.0,0.01288]
[1758866271930,1.41029192,109320.0,109290.0,0.63885691]
[1758866271931,0.02268,109300.0,109290.0,0.03446]
[1758866272131,0.55303382,109300.0,109290.0,0.39526]
[1758866272330,0.95303382,109300.0,109290.0,0.39526]
[1758866272631,0.42268,109300.0,109290.0,0.39526]
[1758866272834,1.04446872,109300.0,109290.0,0.39526]
[1758866273432,0.55303382,109300.0,109290.0,0.39526]
[1758866273632,0.1141108,109310.0,109300.0,0.03446]
[1758866273836,0.37928771,109310.0,109300.0,0.66043691]
[1758866274232,0.37928771,109310.0,109300.0,0.7519324]
[1758866274535,0.37928771,109310.0,109300.0,0.48675549]
[1758866274536,0.1141108,109310.0,109300.0,0.48675549]
[1758866275637,0.44556149,109310.0,109300.0,0.48675549]
[1758866275838,0.81540149,109310.0,109300.0,0.02158]
[1758866276526,0.83340149,109310.0,109300.0,0.02158]
[1758866277934,0.83340149,109310.0,109300.0,0.03452]
[1758866280338,0.81636149,109310.0,109300.0,0.03452]
[1758866280543,0.1201108,109310.0,109300.0,0.03452]
[1758866280743,0.0994264,109310.0,109300.0,0.39532]
[1758866280942,0.008,109310.0,109300.0,1.21825781]
[1758866281638,0.008,109310.0,109300.0,0.88680712]
[1758866282237,0.008,109310.0,109300.0,0.97824192]
[1758866282444,0.45293709,109310.0,109300.0,0.88680712]
[1758866282644,0.45293709,109310.0,109300.0,0.48680712]
[1758866282939,0.1214864,109310.0,109300.0,0.48680712]
[1758866283541,0.45293709,109310.0,109300.0,0.48680712]
[1758866283934,0.45797709,109310.0,109300.0,0.12600712]
[1758866285241,0.45293709,109310.0,109300.0,0.12600712]
[1758866285544,0.85797709,109310.0,109300.0,0.03452]
[1758866288637,0.85797709,109310.0,109270.0,0.19566043]
[1758866288638,0.1134915,109280.0,109270.0,0.38188]
[1758866288839,0.1265515,109280.0,109270.0,0.38188]
[1758866289143,0.81880219,109280.0,109270.0,0.02108]
[1758866289340,0.1134999,109270.0,109260.0,0.63582]
[1758866289534,0.44495059,109270.0,109260.0,0.63582]
[1758866289938,0.44295059,109270.0,109260.0,0.63582]
[1758866290140,0.43095059,109270.0,109260.0,0.63582]
[1758866290844,0.43095059,109270.0,109260.0,0.41382]
[1758866291045,0.43095059,109270.0,109260.0,0.41782]
[1758866291544,0.83599059,109270.0,109260.0,0.3828]
[1758866291939,0.84520689,109270.0,109260.0,0.022]
[1758866292543,0.84520689,109270.0,109260.0,0.004]
[1758866292744,1.20600689,109270.0,109260.0,0.004]
[1758866292944,1.21000689,109270.0,109260.0,0.004]
[1758866293340,0.1135082,109260.0,109250.0,0.63582]
[1758866293642,0.44495889,109260.0,109250.0,0.63582]
[1758866294444,0.46495169,109270.0,109260.0,0.01394]
[1758866294647,0.46495169,109270.0,109260.0,0.03502]
[1758866294842,0.133501,109270.0,109260.0,0.03502]
[1758866295243,0.46495169,109270.0,109260.0,0.03502]
[1758866296344,0.113501,109270.0,109260.0,0.03502]
[1758866296552,0.44495169,109270.0,109260.0,0.03502]
[1758866297149,0.45495169,109270.0,109260.0,0.03502]
[1758866297350,0.01,109270.0,109260.0,0.97880861]
[1758866297749,0.113493,109280.0,109270.0,0.03502]
[1758866297949,0.44494369,109280.0,109270.0,0.03502]
[1758866299650,0.44894369,109280.0,109270.0,0.03502]
[1758866300156,0.45398369,109280.0,109270.0,0.02108]
[1758866301450,0.45398369,109280.0,109270.0,0.03502]
[1758866301841,0.117493,109280.0,109270.0,0.03502]
[1758866302047,0.117493,109280.0,109270.0,0.39582]
[1758866302255,0.44894369,109280.0,109270.0,0.39582]
[1758866302449,0.117493,109280.0,109270.0,0.39582]
[1758866302848,0.02604,109280.0,109270.0,0.63582]
[1758866303045,0.004,109280.0,109270.0,1.15023092]
[1758866303249,0.004,109280.0,109270.0,1.55023092]
[1758866303548,0.44490119,109320.0,109310.0,0.01394]
[1758866303748,0.44490119,109320.0,109310.0,0.39582]
[1758866303948,0.44489699,109320.0,109310.0,0.39582]
[1758866304746,0.1134463,109320.0,109310.0,0.39582]
[1758866304958,0.02204,109320.0,109310.0,0.39582]
[1758866305252,0.1134467,109320.0,109310.0,0.84809875]
[1758866305461,0.44489739,109320.0,109310.0,0.75662]
[1758866306656,0.1134467,109320.0,109310.0,0.75662]
[1758866306857,0.44489739,109320.0,109310.0,0.75662]
[1758866307363,0.44589739,109320.0,109310.0,0.75662]
[1758866308355,0.44589739,109320.0,109310.0,0.99662]
[1758866308960,0.44889739,109320.0,109310.0,0.99662]
[1758866309162,1.19410808,109320.0,109310.0,0.24]
[1758866309357,0.1131352,109310.0,109300.0,0.39644]
[1758866309555,0.44458589,109310.0,109300.0,0.39644]
[1758866309954,0.44458589,109310.0,109300.0,0.63644]
[1758866310157,0.45039589,109310.0,109300.0,0.63644]
[1758866310462,0.1131436,109300.0,109290.0,0.39638]
[1758866310761,0.44459429,109300.0,109290.0,0.48786712]
[1758866310961,0.45729429,109300.0,109290.0,0.72786712]
[1758866311163,0.45729429,109300.0,109290.0,0.63638]
[1758866311361,0.02172,109300.0,109290.0,0.63638]
[1758866311552,0.01972,109300.0,109290.0,0.63638]
[1758866311754,0.01972,109300.0,109290.0,0.39638]
[1758866312262,0.42286799,109310.0,109290.0,0.39638]
[1758866312567,0.1131373,109310.0,109300.0,0.39644]
[1758866312756,0.44458799,109310.0,109300.0,0.39644]
[1758866313668,0.44458199,109320.0,109310.0,0.03564]